bitfinex/quotes_BTCUSD_20250817
["timestamp","ask_amount","ask_price","bid_price","bid_amount"]
[1755436890259,0.06846186,118270.0,118260.0,0.3448338]
[1755436891423,0.07246186,118270.0,118260.0,0.3458338]
[1755436892321,0.07246186,118270.0,118260.0,0.3486338]
[1755436892888,0.07246186,118270.0,118260.0,0.3458338]
[1755436893130,0.07246186,118270.0,118260.0,0.3486338]
[1755436893335,0.0048,118270.0,118260.0,0.3486338]
[1755436894041,0.004,118270.0,118260.0,0.3486338]
[1755436896299,0.004,118270.0,118260.0,0.6153338]
[1755436898040,0.004,118270.0,118260.0,0.9553338]
[1755436900294,0.004,118270.0,118260.0,0.9525338]
[1755436900504,0.0093,118270.0,118260.0,0.9525338]
[1755436901452,0.00607,118270.0,118260.0,0.9525338]
[1755436902230,0.004,118270.0,118260.0,0.9525338]
[1755436903154,0.004,118270.0,118260.0,1.0832538]
[1755436917082,0.004,118270.0,118260.0,1.12101221]
[1755436918553,0.004,118270.0,118260.0,0.99029221]
[1755436918778,0.004,118270.0,118260.0,1.12093221]
[1755436929515,0.004,118270.0,118260.0,1.12089221]
[1755436938283,0.00612,118270.0,118260.0,1.12089221]
[1755436938489,0.00936,118270.0,118260.0,1.12089221]
[1755436939460,0.004,118270.0,118260.0,1.12089221]
[1755436957866,0.004,118270.0,118260.0,1.12369221]
[1755436961630,0.004,118270.0,118260.0,1.0859338]
[1755436964014,0.024,118270.0,118260.0,1.0859338]
[1755436973565,0.024,118270.0,118260.0,0.9553338]
[1755436973795,0.024,118270.0,118260.0,1.0829338]
[1755436976121,0.024,118270.0,118260.0,1.0857338]
[1755436976548,0.024,118270.0,118260.0,1.12355697]
[1755436976950,0.024,118270.0,118260.0,1.17355697]
[1755436977589,0.024,118270.0,118260.0,1.17075697]
[1755436980389,0.024,118270.0,118260.0,1.04035697]
[1755436980595,0.02596,118270.0,118260.0,1.04035697]
[1755436980778,0.02906,118270.0,118260.0,1.17071697]
[1755436996099,0.02906,118270.0,118260.0,1.04035697]
[1755436996305,0.02906,118270.0,118260.0,1.17067697]
[1755437001539,0.02906,118270.0,118260.0,1.1328538]
[1755437011181,0.02906,118270.0,118260.0,1.17023893]
[1755437019511,0.024,118270.0,118260.0,1.17023893]
[1755437041528,0.024,118270.0,118260.0,1.1328538]
[1755437050354,0.024,118270.0,118260.0,1.0025338]
[1755437050570,0.024,118270.0,118260.0,1.1326538]
[1755437051927,0.02713,118270.0,118260.0,1.1326538]
[1755437052508,0.02916,118270.0,118260.0,1.1326538]
[1755437053921,0.02916,118270.0,118260.0,1.0025338]
[1755437054130,0.02916,118270.0,118260.0,1.1326538]
[1755437056448,0.02916,118270.0,118260.0,1.17087691]
[1755437071438,0.02916,118270.0,118260.0,1.1326538]
[1755437077977,0.02916,118270.0,118260.0,1.0025338]
[1755437078163,0.02916,118270.0,118260.0,1.0005338]
[1755437078388,0.02916,118270.0,118260.0,1.1305738]
[1755437078654,0.26672645,118270.0,118260.0,1.1305338]
[1755437079089,0.26672645,118270.0,118260.0,0.6605338]
[1755437079302,0.26672645,118270.0,118260.0,0.7905338]
[1755437079507,0.26672645,118270.0,118260.0,1.1305338]
[1755437079951,0.26672645,118270.0,118260.0,0.8638338]
[1755437080857,0.26672645,118270.0,118260.0,0.8138338]
[1755437081964,0.26672645,118270.0,118260.0,0.7884248]
[1755437085412,0.26672645,118270.0,118260.0,0.6584248]
[1755437085554,0.09762186,118270.0,118260.0,0.7884248]
[1755437086543,0.09762186,118270.0,118260.0,0.6584248]
[1755437086797,0.09762186,118270.0,118260.0,0.7884248]
[1755437094372,0.26672645,118270.0,118260.0,0.7884248]
[1755437102901,0.02996,118270.0,118260.0,0.7884248]
[1755437103158,0.02996,118270.0,118260.0,0.7904048]
[1755437104743,0.0248,118270.0,118260.0,0.7904048]
[1755437105151,0.024,118270.0,118260.0,0.7932048]
[1755437105782,0.024,118270.0,118260.0,0.8186138]
[1755437106623,0.0248,118270.0,118260.0,0.8186138]
[1755437107515,0.0248,118270.0,118260.0,0.8158138]
[1755437109511,0.0248,118270.0,118260.0,1.0825138]
[1755437111205,0.0248,118270.0,118260.0,1.12083213]
[1755437125203,0.024,118270.0,118260.0,1.12083213]
[1755437125410,0.0248,118270.0,118260.0,1.12083213]
[1755437126597,0.024,118270.0,118260.0,1.0825138]
[1755437128639,0.0248,118270.0,118260.0,1.0825138]
[1755437129442,0.024,118270.0,118260.0,1.0825138]
[1755437129796,0.0248,118270.0,118260.0,1.0825138]
[1755437130179,0.024,118270.0,118260.0,1.0825138]
[1755437138780,0.02903,118270.0,118260.0,1.0825138]
[1755437141232,0.02903,118270.0,118260.0,1.1200132]
[1755437159067,0.02604,118270.0,118260.0,1.1200132]
[1755437159317,0.024,118270.0,118260.0,1.1200132]
[1755437176038,0.02724,118270.0,118260.0,1.1200132]
[1755437176243,0.02937,118270.0,118260.0,1.1200132]
[1755437178480,0.024,118270.0,118260.0,1.1200132]
[1755437180050,0.024,118270.0,118260.0,1.1228132]
[1755437180504,0.024,118270.0,118260.0,0.8802132]
[1755437181179,0.024,118270.0,118260.0,0.8792132]
[1755437181699,0.02,118270.0,118260.0,0.8792132]
[1755437181893,0.02,118270.0,118260.0,0.9292132]
[1755437182032,0.02,118270.0,118260.0,0.9302132]
[1755437182246,0.02,118270.0,118260.0,0.9292132]
[1755437183178,0.023,118270.0,118260.0,0.9292132]
[1755437184885,0.023,118270.0,118260.0,0.9312132]
[1755437189341,0.023,118270.0,118260.0,1.1979132]
[1755437196527,4.876e-05,118280.0,118270.0,0.16910459]
[1755437196842,4.876e-05,118280.0,118270.0,0.47053988]
[1755437197472,4.876e-05,118280.0,118270.0,0.49594188]
[1755437198564,0.00504876,118280.0,118270.0,0.49694188]
[1755437200376,0.00504876,118280.0,118270.0,0.49794188]
[1755437201249,0.00504876,118280.0,118270.0,0.76464188]
[1755437205084,0.00504876,118280.0,118270.0,0.49764188]
[1755437207432,0.07090186,118290.0,118280.0,0.50909029]
[1755437207634,0.07090186,118290.0,118280.0,0.73823761]
[1755437208179,0.07304186,118290.0,118280.0,0.73823761]
[1755437208618,0.07304186,118290.0,118280.0,0.76363861]
[1755437209294,0.07704186,118290.0,118280.0,0.76463861]
[1755437209694,0.07704186,118290.0,118280.0,0.76247861]
[1755437210124,0.07704186,118290.0,118280.0,1.02917861]
[1755437211465,0.07704186,118290.0,118280.0,1.03751718]
[1755437212082,0.07704186,118290.0,118280.0,0.90791718]
[1755437212280,0.07704186,118290.0,118280.0,1.03747718]
[1755437212493,0.07704186,118290.0,118280.0,0.77293718]
[1755437212494,0.004,118290.0,118280.0,0.77293718]
[1755437214922,0.004,118290.0,118280.0,0.77193718]
[1755437215137,3.02202966,118300.0,118290.0,0.50907599]
[1755437215356,3.02202966,118300.0,118290.0,0.75811107]
[1755437215581,3.02416966,118300.0,118290.0,0.75811107]
[1755437216023,3.02416966,118300.0,118290.0,0.78350907]
[1755437216490,3.02416966,118300.0,118290.0,0.8218253]
[1755437216919,3.02516966,118300.0,118290.0,0.8248253]
[1755437218877,3.02516966,118300.0,118290.0,1.0915253]
[1755437226587,3.02516966,118300.0,118290.0,1.05320907]
[1755437230383,3.02516966,118300.0,118290.0,1.05312907]
[1755437236103,3.02516966,118300.0,118290.0,1.0913501]
[1755437240659,3.02516966,118300.0,118290.0,1.0910851]
[1755437254540,3.02516966,118300.0,118290.0,1.0932351]
[1755437256494,3.02516966,118300.0,118290.0,1.05501407]
[1755437256714,3.02002966,118300.0,118290.0,1.05501407]
[1755437258230,3.02002966,118300.0,118290.0,1.05781407]
[1755437260619,3.02002966,118300.0,118290.0,1.05501407]
[1755437260822,3.02002966,118300.0,118290.0,1.05781407]
[1755437262912,3.02002966,118300.0,118290.0,1.05501407]
[1755437264630,3.02002966,118300.0,118290.0,1.10501407]
[1755437273611,3.02295966,118300.0,118290.0,1.10501407]
[1755437273857,3.02504966,118300.0,118290.0,1.10501407]
[1755437275474,2.62294825,118300.0,118290.0,1.10501407]
[1755437280779,2.62294825,118300.0,118290.0,1.10286407]
[1755437281395,2.62294825,118300.0,118290.0,1.14023972]
[1755437282484,2.62294825,118300.0,118290.0,1.14823972]
[1755437283483,2.62294825,118300.0,118290.0,1.14023972]
[1755437284415,2.62294825,118300.0,118290.0,2.65280966]
[1755437288373,2.62294825,118300.0,118290.0,2.66080966]
[1755437295001,2.62294825,118300.0,118290.0,2.65280966]
[1755437300173,2.62294825,118300.0,118290.0,2.66080966]
[1755437300397,2.62294825,118300.0,118290.0,1.5229497]
[1755437300611,2.62294825,118300.0,118290.0,1.6521497]
[1755437304849,2.62294825,118300.0,118290.0,1.3854497]
[1755437305626,2.62294825,118300.0,118290.0,1.3774497]
[1755437305812,2.62294825,118300.0,118290.0,1.62954469]
[1755437306454,2.62294825,118300.0,118290.0,1.59216904]
[1755437310635,2.62294825,118300.0,118290.0,1.85886904]
[1755437319855,2.62294825,118300.0,118290.0,1.89715862]
[1755437324040,2.62294825,118300.0,118290.0,1.89910862]
[1755437324251,2.61792825,118300.0,118290.0,1.89910862]
[1755437324798,2.62294825,118300.0,118290.0,1.89910862]
[1755437325215,2.62294825,118300.0,118290.0,1.89715862]
[1755437342887,2.62294825,118300.0,118290.0,1.89923862]
[1755437343132,2.61792825,118300.0,118290.0,2.65552359]
[1755437343356,2.61792825,118300.0,118290.0,2.65832359]
[1755437344916,2.61792825,118300.0,118290.0,2.65552359]
[1755437348198,2.61792825,118300.0,118290.0,1.89923862]
[1755437351274,2.62110825,118300.0,118290.0,1.89923862]
[1755437353889,2.62312825,118300.0,118290.0,1.89923862]
[1755437357115,2.62110825,118300.0,118290.0,1.89923862]
[1755437357283,2.61792825,118300.0,118290.0,2.65552359]
[1755437364369,2.61792825,118300.0,118290.0,2.65832359]
[1755437365585,2.62312825,118300.0,118290.0,2.25762359]
[1755437365789,2.62312825,118300.0,118290.0,1.62825862]
[1755437365977,2.62312825,118300.0,118290.0,1.63125862]
[1755437367607,2.62212825,118300.0,118290.0,1.63025862]
[1755437368028,2.62312825,118300.0,118290.0,1.63325862]
[1755437371314,2.62312825,118300.0,118290.0,1.89995862]
[1755437371494,2.62312825,118300.0,118290.0,1.86166904]
[1755437379563,2.62312825,118300.0,118290.0,1.90057932]
[1755437382525,2.62312825,118300.0,118290.0,1.90857932]
[1755437385833,2.62312825,118300.0,118290.0,1.90057932]
[1755437391015,2.62312825,118300.0,118290.0,1.90857932]
[1755437392166,2.61792825,118300.0,118290.0,1.91056932]
[1755437392382,2.61792825,118300.0,118290.0,2.66685429]
[1755437392523,2.61792825,118300.0,118290.0,1.91056932]
[1755437393366,2.61792825,118300.0,118290.0,2.35526932]
[1755437397351,2.62088825,118300.0,118290.0,2.35526932]
[1755437399510,2.62296825,118300.0,118290.0,2.35526932]
[1755437400919,2.62296825,118300.0,118290.0,2.34726932]
[1755437403582,2.62296825,118300.0,118290.0,2.34527932]
[1755437405426,2.62296825,118300.0,118290.0,2.34730932]
[1755437405638,1.55093399,118300.0,118290.0,7.24701831]
[1755437405877,1.46426979,118300.0,118290.0,7.2659131]
[1755437406085,1.32093346,118300.0,118290.0,7.2659131]
[1755437406309,1.16920815,118300.0,118290.0,3.8191081]
[1755437406499,1.00917136,118300.0,118290.0,3.8191081]
[1755437406776,0.94417386,118300.0,118290.0,3.8191081]
[1755437407045,0.93571688,118300.0,118290.0,3.8191081]
[1755437407262,0.38645153,118300.0,118290.0,3.8191081]
[1755437407438,0.2429601,118300.0,118290.0,3.8161081]
[1755437407651,0.07734952,118300.0,118290.0,3.8131081]
[1755437407848,1e-08,118300.0,118290.0,3.8131081]
[1755437408050,0.00304,118320.0,118310.0,0.50904741]
[1755437408404,0.00531393,118320.0,118310.0,0.97479645]
[1755437409424,0.00531393,118320.0,118310.0,1.50437743]
[1755437410724,0.00531393,118320.0,118310.0,1.77107743]
[1755437411555,0.00531393,118320.0,118310.0,1.82107743]
[1755437411921,0.00531393,118320.0,118310.0,1.82407743]
[1755437416315,0.00531393,118320.0,118310.0,1.82610743]
[1755437417317,0.00531393,118320.0,118310.0,1.86469893]
[1755437417525,0.06976604,118340.0,118330.0,1.01320882]
[1755437417733,0.06981186,118340.0,118330.0,1.22682287]
[1755437417940,0.07191604,118340.0,118330.0,1.22843131]
[1755437418385,0.07191604,118340.0,118330.0,1.22842708]
[1755437418843,0.07191604,118340.0,118330.0,1.25381708]
[1755437419447,0.07595604,118340.0,118330.0,1.25481708]
[1755437420063,0.00829418,118340.0,118330.0,1.25481708]
[1755437420269,0.00619,118340.0,118330.0,1.25481708]
[1755437420479,0.00829418,118340.0,118330.0,1.25481708]
[1755437421514,0.00829418,118340.0,118330.0,0.7506271]
[1755437421719,0.00829418,118340.0,118330.0,1.25481708]
[1755437422470,0.00619,118340.0,118330.0,1.25481708]
[1755437422681,0.00829418,118340.0,118330.0,1.25481708]
[1755437423340,0.00829418,118340.0,118330.0,0.7506271]
[1755437423776,0.00829418,118340.0,118330.0,1.25481708]
[1755437425727,0.00619,118340.0,118330.0,1.25481708]
[1755437425924,0.00829418,118340.0,118330.0,1.25481708]
[1755437427036,0.00619,118340.0,118330.0,1.25481708]
[1755437427212,0.00525418,118340.0,118330.0,1.25481708]
[1755437427557,0.00525418,118340.0,118330.0,1.25684708]
[1755437428671,0.00525418,118340.0,118330.0,1.50894207]
[1755437428873,0.00315,118340.0,118330.0,1.50894207]
[1755437429074,0.00525418,118340.0,118330.0,1.50894207]
[1755437429287,0.00525418,118340.0,118330.0,1.25684708]
[1755437430460,0.00525418,118340.0,118330.0,1.25995708]
[1755437432207,0.00315,118340.0,118330.0,1.25995708]
[1755437432392,0.00525418,118340.0,118330.0,1.25995708]
[1755437434158,0.00315,118340.0,118330.0,1.25995708]
[1755437434365,0.00525418,118340.0,118330.0,1.25995708]
[1755437435932,0.00525418,118340.0,118330.0,0.7557671]
[1755437436117,0.00525418,118340.0,118330.0,1.25995708]
[1755437437543,0.00315,118340.0,118330.0,1.25995708]
[1755437437957,0.00525418,118340.0,118330.0,1.25995708]
[1755437439390,0.00315,118340.0,118330.0,1.25995708]
[1755437439598,0.00525418,118340.0,118330.0,1.25995708]
[1755437443377,0.00315,118340.0,118330.0,1.25995708]
[1755437443579,0.00525418,118340.0,118330.0,1.25995708]
[1755437443763,0.00315,118340.0,118330.0,1.25995708]
[1755437443961,0.00525418,118340.0,118330.0,1.25995708]
[1755437444793,0.00310418,118340.0,118330.0,1.25995708]
[1755437445159,0.001,118340.0,118330.0,1.25995708]
[1755437445361,0.00310418,118340.0,118330.0,1.25995708]
[1755437445573,0.00310418,118340.0,118330.0,0.7557671]
[1755437445754,0.00310418,118340.0,118330.0,1.25995708]
[1755437446160,0.001,118340.0,118330.0,1.51205207]
[1755437449501,0.001,118340.0,118330.0,1.77875207]
[1755437450499,0.001,118340.0,118330.0,1.82875207]
[1755437451525,0.001,118340.0,118330.0,1.56205207]
[1755437451666,0.001,118340.0,118330.0,1.82875207]
[1755437454011,0.001,118340.0,118330.0,2.58503704]
[1755437454257,0.001,118340.0,118330.0,2.27345207]
[1755437455113,0.001,118340.0,118330.0,3.02973704]
[1755437455343,0.0175,118350.0,118340.0,2.0215745]
[1755437455558,0.0175,118350.0,118340.0,2.23705855]
[1755437455779,0.0175,118350.0,118340.0,1.75845358]
[1755437456774,0.0175,118350.0,118340.0,1.78383858]
[1755437457184,0.0175,118350.0,118340.0,1.82256875]
[1755437457363,0.0185,118350.0,118340.0,1.82256875]
[1755437458153,0.0185,118350.0,118340.0,2.5833912]
[1755437458659,0.0205,118350.0,118340.0,2.5843912]
[1755437461389,0.0205,118350.0,118340.0,3.02883259]
[1755437463210,0.02046,118350.0,118340.0,2.58413259]
[1755437463435,0.02046,118350.0,118340.0,3.50899559]
[1755437463661,0.02046,118350.0,118340.0,3.50445811]
[1755437464503,0.02046,118350.0,118340.0,3.34819911]
[1755437464982,0.01946,118350.0,118340.0,3.34819911]
[1755437465189,0.01946,118350.0,118340.0,1.39310417]
[1755437465393,0.02046,118350.0,118340.0,2.77061787]
[1755437465615,0.02046,118350.0,118340.0,1.8198389]
[1755437466033,0.01946,118350.0,118340.0,1.8198389]
[1755437466265,0.01946,118350.0,118340.0,1.06355288]
[1755437466475,0.01746,118350.0,118340.0,1.06255288]
[1755437466691,0.01746,118350.0,118340.0,2.57512282]
[1755437466937,0.01946,118350.0,118340.0,2.57612282]
[1755437467382,0.002,118350.0,118340.0,2.57612282]
[1755437469491,0.002,118350.0,118340.0,3.02082282]
[1755437470610,0.002,118350.0,118340.0,3.02882282]
[1755437471589,0.002,118350.0,118340.0,2.99009265]
[1755437475211,0.00401,118350.0,118340.0,1.78648768]
[1755437475738,0.00401,118350.0,118340.0,1.78944768]
[1755437475969,0.00401,118350.0,118340.0,1.52274768]
[1755437476344,0.002,118350.0,118340.0,1.52274768]
[1755437476559,0.002,118350.0,118340.0,1.55992103]
[1755437477558,0.002,118350.0,118340.0,1.43084103]
[1755437477792,0.00697,118350.0,118340.0,0.82583604]
[1755437478015,0.00697,118350.0,118340.0,0.45072606]
[1755437478250,0.00697,118350.0,118340.0,0.95491604]
[1755437478477,0.17596028,118350.0,118340.0,0.78679284]
[1755437478702,0.00777,118350.0,118340.0,0.45072606]
[1755437478967,0.00777,118350.0,118340.0,0.79072606]
[1755437479195,0.00777,118350.0,118340.0,1.12679284]
[1755437484110,0.00777,118350.0,118340.0,0.79072606]
[1755437484321,0.00777,118350.0,118340.0,1.12679284]
[1755437484762,0.00777,118350.0,118340.0,0.79072606]
[1755437484915,0.00777,118350.0,118340.0,1.12679284]
[1755437485965,0.00777,118350.0,118340.0,0.79072606]
[1755437486177,0.00777,118350.0,118340.0,1.12679284]
[1755437492263,0.00777,118350.0,118340.0,1.10140784]
[1755437493913,0.00777,118350.0,118340.0,0.76534106]
[1755437494159,0.00777,118350.0,118340.0,1.10140784]
[1755437494553,0.00777,118350.0,118340.0,0.76534106]
[1755437494760,0.00777,118350.0,118340.0,1.10140784]
[1755437494974,0.00777,118350.0,118340.0,0.76534106]
[1755437495188,0.00777,118350.0,118340.0,1.10140784]
[1755437495958,0.00481,118350.0,118340.0,1.10140784]
[1755437496466,0.00481,118350.0,118340.0,1.06423449]
[1755437497541,0.00481,118350.0,118340.0,1.05970678]
[1755437498350,0.00481,118350.0,118340.0,1.22769882]
[1755437498556,0.00481,118350.0,118340.0,1.22985882]
[1755437500707,0.00481,118350.0,118340.0,1.23292882]
[1755437501122,0.00481,118350.0,118340.0,0.72887]
[1755437501301,0.00481,118350.0,118340.0,1.23292882]
[1755437501508,0.0028,118350.0,118340.0,1.23292882]
[1755437503069,0.0028,118350.0,118340.0,0.72887]
[1755437503294,0.0028,118350.0,118340.0,1.23292882]
[1755437514604,0.0028,118350.0,118340.0,1.49962882]
[1755437516401,0.0049,118350.0,118340.0,1.49962882]
[1755437518065,0.0028,118350.0,118340.0,1.49962882]
[1755437520468,0.17599446,118350.0,118340.0,0.59672]
[1755437520674,0.17923446,118350.0,118340.0,0.25481861]
[1755437520917,0.43126387,118350.0,118340.0,0.38501861]
[1755437521808,0.17923446,118350.0,118340.0,0.38501861]
[1755437522031,0.43126387,118350.0,118340.0,0.38501861]
[1755437522214,0.43126387,118350.0,118340.0,0.08581405]
[1755437522445,0.43126387,118350.0,118340.0,0.1312]
[1755437523307,0.17923446,118350.0,118340.0,0.001]
[1755437523532,0.17923446,118350.0,118340.0,0.13116]
[1755437523743,0.43126387,118350.0,118340.0,0.13116]
[1755437525209,0.17923446,118350.0,118340.0,0.13116]
[1755437525417,0.43126387,118350.0,118340.0,0.13116]
[1755437525875,0.17923446,118350.0,118340.0,0.13116]
[1755437542858,0.17599446,118350.0,118340.0,0.13116]
[1755437545981,0.17599446,118350.0,118340.0,0.13318]
[1755437548195,0.17599446,118350.0,118340.0,0.38520941]
[1755437548734,0.17599446,118350.0,118340.0,0.13318]
[1755437548942,0.17599446,118350.0,118340.0,0.38520941]
[1755437550852,0.17599446,118350.0,118340.0,0.38844941]
[1755437551984,0.17599446,118350.0,118340.0,0.13642]
[1755437553226,0.17599446,118350.0,118340.0,0.38844941]
[1755437558005,0.17389446,118350.0,118340.0,0.38844941]
[1755437561218,0.17389446,118350.0,118340.0,0.13642]
[1755437561657,0.17389446,118350.0,118340.0,0.38844941]
[1755437573165,0.17389446,118350.0,118340.0,0.00626]
[1755437573379,0.17389446,118350.0,118340.0,0.13562]
[1755437573581,0.17389446,118350.0,118340.0,0.38764941]
[1755437576473,0.17389446,118350.0,118340.0,0.13562]
[1755437576618,0.17389446,118350.0,118340.0,0.38764941]
[1755437577898,0.17389446,118350.0,118340.0,0.13562]
[1755437578156,0.17592446,118350.0,118340.0,0.13562]
[1755437578390,0.17592446,118350.0,118340.0,0.38764941]
[1755437579803,0.17592446,118350.0,118340.0,0.13562]
[1755437580008,0.17592446,118350.0,118340.0,0.38764941]
[1755437580517,0.17592446,118350.0,118340.0,0.13562]
[1755437580727,0.17592446,118350.0,118340.0,0.38764941]
[1755437581126,0.17592446,118350.0,118340.0,0.13562]
[1755437581368,0.17592446,118350.0,118340.0,0.38764941]
[1755437582524,0.17592446,118350.0,118340.0,0.13562]
[1755437582733,0.17592446,118350.0,118340.0,0.38764941]
[1755437587185,0.17592446,118350.0,118340.0,0.13562]
[1755437587564,0.17592446,118350.0,118340.0,0.38764941]
[1755437588749,0.17592446,118350.0,118340.0,0.13562]
[1755437589151,0.17592446,118350.0,118340.0,0.38764941]
[1755437589386,0.17389446,118350.0,118340.0,0.13562]
[1755437589588,0.17389446,118350.0,118340.0,0.38764941]
[1755437590612,0.17592446,118350.0,118340.0,0.38764941]
[1755437597387,0.17592446,118350.0,118340.0,0.13562]
[1755437597595,0.17592446,118350.0,118340.0,0.38764941]
[1755437597806,0.17592446,118350.0,118340.0,0.13562]
[1755437598461,0.17592446,118350.0,118340.0,0.00626]
[1755437598660,0.42795387,118350.0,118340.0,0.00626]
[1755437598872,0.42795387,118350.0,118340.0,0.00302]
[1755437599200,0.44859289,118350.0,118340.0,0.001]
[1755437599646,0.71645884,118350.0,118340.0,0.001]
[1755437599772,0.80127289,118350.0,118340.0,0.001]
[1755437600185,0.54924348,118350.0,118340.0,0.001]
[1755437600915,0.80127289,118350.0,118340.0,0.001]
[1755437601336,0.54924348,118350.0,118340.0,0.001]
[1755437601521,0.16981884,118330.0,118320.0,0.00425904]
[1755437601730,0.30303302,118330.0,118320.0,0.00425904]
[1755437602761,0.55506243,118330.0,118320.0,0.00425904]
[1755437605089,0.56340003,118330.0,118320.0,0.00425904]
[1755437605336,0.31137062,118330.0,118320.0,0.00425904]
[1755437607538,0.30303302,118330.0,118320.0,0.00425904]
[1755437607730,0.31139944,118330.0,118320.0,0.00425904]
[1755437607890,0.31139944,118330.0,118320.0,0.00633904]
[1755437608661,0.31139944,118330.0,118320.0,0.00733904]
[1755437608875,0.31539944,118330.0,118320.0,0.00733904]
[1755437609323,0.30703302,118330.0,118320.0,0.00733904]
[1755437609532,0.32767204,118330.0,118320.0,0.00525904]
[1755437609680,0.57970145,118330.0,118320.0,0.00525904]
[1755437610113,0.58825946,118330.0,118320.0,0.00525904]
[1755437612338,0.58525946,118330.0,118320.0,0.00425904]
[1755437612767,0.58825946,118330.0,118320.0,0.00525904]
[1755437613157,0.58425946,118330.0,118320.0,0.00425904]
[1755437613496,0.58625946,118330.0,118320.0,0.00425904]
[1755437614312,0.58425946,118330.0,118320.0,0.00425904]
[1755437614511,0.33223005,118330.0,118320.0,0.00425904]
[1755437614744,0.58425946,118330.0,118320.0,0.00425904]
[1755437614928,0.33223005,118330.0,118320.0,0.00425904]
[1755437615088,0.58425946,118330.0,118320.0,0.00425904]
[1755437615714,0.58525946,118330.0,118320.0,0.00525904]
[1755437616491,0.45617946,118330.0,118320.0,0.00525904]
[1755437616644,0.58525946,118330.0,118320.0,0.00525904]
[1755437617250,0.33323005,118330.0,118320.0,0.00525904]
[1755437617655,0.58725946,118330.0,118320.0,0.00525904]
[1755437618969,0.19759204,118330.0,118320.0,0.00525904]
[1755437619208,0.32667204,118330.0,118320.0,0.00525904]
[1755437619635,0.32348204,118330.0,118320.0,0.00722904]
[1755437619825,0.32348204,118330.0,118320.0,0.01040904]
[1755437620427,0.32348204,118330.0,118320.0,0.00722904]
[1755437620428,0.33926834,118330.0,118320.0,0.00722904]
[1755437621431,0.33926834,118330.0,118320.0,0.00525904]
[1755437622600,0.59129775,118330.0,118320.0,0.00525904]
[1755437623636,0.591304,118330.0,118320.0,0.00525904]
[1755437626622,0.57551145,118330.0,118320.0,0.00525904]
[1755437626833,0.59131317,118330.0,118320.0,0.00525904]
[1755437628228,0.33928376,118330.0,118320.0,0.00525904]
[1755437628630,0.59131317,118330.0,118320.0,0.00525904]
[1755437629874,0.59133019,118330.0,118320.0,0.00525904]
[1755437630525,0.59133019,118330.0,118320.0,0.00722904]
[1755437630731,0.59133019,118330.0,118320.0,0.01040904]
[1755437630982,0.59133019,118330.0,118320.0,0.00722904]
[1755437634385,0.59133019,118330.0,118320.0,0.00525904]
[1755437635933,0.59134097,118330.0,118320.0,0.00525904]
[1755437641088,0.59452097,118330.0,118320.0,0.00525904]
[1755437641277,0.59453148,118330.0,118320.0,0.00525904]
[1755437642786,0.33932207,118330.0,118320.0,0.00722904]
[1755437643273,0.59135148,118330.0,118320.0,0.00722904]
[1755437644059,0.59135154,118330.0,118320.0,0.00722904]
[1755437644294,0.33932213,118330.0,118320.0,0.00722904]
[1755437651588,0.33932213,118330.0,118320.0,0.00525904]
[1755437651799,0.59443154,118330.0,118320.0,0.00525904]
[1755437652791,0.34240213,118330.0,118320.0,0.00525904]
[1755437653238,0.59443215,118330.0,118320.0,0.00525904]
[1755437653709,0.59443212,118330.0,118320.0,0.00525904]
[1755437656933,0.59443212,118330.0,118320.0,0.00045904]
[1755437659359,0.33932271,118330.0,118320.0,0.00242904]
[1755437660038,0.33932271,118330.0,118320.0,0.25445845]
[1755437660812,0.33932271,118330.0,118320.0,0.00242904]
[1755437662199,0.32348204,118330.0,118320.0,0.00242904]
[1755437662413,0.33932177,118330.0,118320.0,0.00242904]
[1755437662650,0.32141204,118330.0,118320.0,0.50965786]
[1755437662875,0.32141204,118330.0,118320.0,0.67869099]
[1755437662876,0.31980245,118330.0,118320.0,0.67869099]
[1755437663067,0.30396302,118330.0,118320.0,0.67869099]
[1755437663510,0.00590418,118330.0,118320.0,0.67869099]
[1755437663724,0.13494418,118330.0,118320.0,0.67869099]
[1755437664155,0.00590418,118330.0,118320.0,0.76350504]
[1755437664411,0.00590418,118330.0,118320.0,0.78797504]
[1755437665073,0.00590418,118330.0,118320.0,0.28391622]
[1755437665278,0.00590418,118330.0,118320.0,0.78797504]
[1755437665590,0.00390418,118330.0,118320.0,0.78797504]
[1755437666375,0.00590418,118330.0,118320.0,0.78797504]
[1755437667197,0.00390418,118330.0,118320.0,0.78797504]
[1755437667595,0.00290418,118330.0,118320.0,0.787516]
[1755437668006,0.00290418,118330.0,118320.0,0.788516]
[1755437668211,0.00690418,118330.0,118320.0,0.788516]
[1755437668917,0.0048,118330.0,118320.0,0.788516]
[1755437669132,0.00290418,118330.0,118320.0,0.787516]
[1755437669525,0.00590418,118330.0,118320.0,0.788516]
[1755437669950,0.00690418,118330.0,118320.0,0.788516]
[1755437677151,0.004,118330.0,118320.0,0.788516]
[1755437677389,0.00690418,118330.0,118320.0,1.04054541]
[1755437677589,0.004,118330.0,118320.0,1.04054541]
[1755437677984,0.00610418,118330.0,118320.0,1.38054541]
[1755437679369,0.00610418,118330.0,118320.0,1.40593841]
[1755437679579,0.004,118330.0,118320.0,1.40593841]
[1755437679786,0.00610418,118330.0,118320.0,1.40593841]
[1755437680843,0.004,118330.0,118320.0,1.40593841]
[1755437681056,0.00610418,118330.0,118320.0,1.40593841]
[1755437687299,0.00610418,118330.0,118320.0,1.53489841]
[1755437693624,0.004,118330.0,118320.0,1.53489841]
[1755437693909,0.00610418,118330.0,118320.0,1.53489841]
[1755437698386,0.00610418,118330.0,118320.0,2.29098664]
[1755437698607,0.004,118330.0,118320.0,2.29098664]
[1755437698819,0.004,118330.0,118320.0,1.53489841]
[1755437699281,0.004,118330.0,118320.0,2.29098664]
[1755437699589,0.004,118330.0,118320.0,1.53489841]
[1755437701695,0.004,118330.0,118320.0,1.53389841]
[1755437701925,0.00290418,118350.0,118340.0,0.50900456]
[1755437702144,0.00504418,118350.0,118340.0,1.22679743]
[1755437702397,0.00809418,118350.0,118340.0,1.22679743]
[1755437703948,0.00809418,118350.0,118340.0,1.49349743]
[1755437705787,0.00504418,118350.0,118340.0,1.53112374]
[1755437706628,0.00504418,118350.0,118340.0,1.49349743]
[1755437707045,0.00604418,118350.0,118340.0,1.49449743]
[1755437709501,0.00604418,118350.0,118340.0,0.99043861]
[1755437709719,0.00604418,118350.0,118340.0,1.49657743]
[1755437710481,0.00604418,118350.0,118340.0,1.49967743]
[1755437710714,0.00604418,118350.0,118340.0,1.53803076]
[1755437712128,0.00390418,118350.0,118340.0,1.53803076]
[1755437718227,0.00439269,118350.0,118340.0,1.53803076]
[1755437721479,0.00439269,118350.0,118340.0,1.03397194]
[1755437721668,0.00439269,118350.0,118340.0,1.53803076]